Cogmind - Beta 15 @@@ ROGUE MODE // 2025.10.19 @ 15:45:46 Player: GolbalwarmingLord Result: Destroyed by H-61 Shepherd with Heavy Assault Cannon Performance ------------- Evolutions (2) 1000 Regions Visited (5) 1000 Robots Destroyed (54) 270 Value Destroyed (862) 862 Prototype IDs (24) 480 Alien Tech Used (0) 0 Bonus (444) 444 TOTAL SCORE: 4056 Bonus ------- Follower Combat Kills 144 Aligned with FarCom 300 Cogmind --------- Core Integrity 0/550 Matter 293/300 Energy 100/100 System Corruption 19% Temperature Cool (0) Movement Core (1400) Ox27 Location -8/Materials Parts ------- > --- POWER (1) -------- (None) > --- PROPULSION (4) --- (None) > --- UTILITY (4) ------ Huge Storage Unit > --- WEAPON (2) ------- Hammer > --- INVENTORY (25) --- Hacking Suite Hacking Suite Mining Laser Peak State ------------ > --- POWER ------------ Light Nuclear Core > --- PROPULSION ------- Wheel Wheel Wheel Wheel > --- UTILITY ---------- Huge Storage Unit Improved Terrain Scanner Terrain Scan Processor Light Armor Plating > --- WEAPON ----------- High-powered Shotgun Makeshift Sword > --- INVENTORY -------- Light Nuclear Core Aluminum Leg Carbon-fiber Leg Improved Heat Sink Hacking Suite Hacking Suite Medium Laser Rocket Launcher Mining Laser [Rating: 23] Favorites ----------- Power Ion Engine Engine Ion Engine Power Core Light Nuclear Core Propulsion Aluminum Leg Leg Aluminum Leg Wheel Wheel Utility Small Storage Unit Device Improved Terrain Scanner Storage Small Storage Unit Processor Terrain Scan Processor Protection Core Shielding Weapon Medium Laser Energy Gun Medium Laser Ballistic Gun High-powered Shotgun Launcher Rocket Launcher Special Weapon Field Lobotomy Kit Impact Weapon Hammer Slashing Weapon Makeshift Sword Build | -11 -10 -10 -10 -9 -8 ------- Run | Yrd Mat Min Exi Min Mat Slots Evolved 4 | . . . . . 4 Power . | . . . . . . Propulsion 2 | . . . . . 2 Utility 2 | . . . . . 2 Weapon . | . . . . . . Parts Attached 31 | 8 1 . . 4 18 Power 6 | 1 . . . 1 4 Engine 4 | 1 . . . 1 2 Core 2 | . . . . . 2 Reactor . | . . . . . . Propulsion 8 | 2 . . . . 6 Treads . | . . . . . . Leg 4 | 2 . . . . 2 Wheel 4 | . . . . . 4 Hover . | . . . . . . Flight . | . . . . . . Utility 8 | 3 . . . . 5 Device 3 | 2 . . . . 1 Storage 2 | 1 . . . . 1 Processor 1 | . . . . . 1 Hackware . | . . . . . . Protection 2 | . . . . . 2 Artifact . | . . . . . . Weapon 9 | 2 1 . . 3 3 Energy Gun 3 | 2 . . . . 1 Energy Cannon . | . . . . . . Ballistic Gun 1 | . . . . . 1 Ballistic Cannon . | . . . . . . Launcher 1 | . . . . 1 . Special Weapon 1 | . . . . 1 . Impact Weapon 2 | . 1 . . . 1 Slashing Weapon 1 | . . . . 1 . Piercing Weapon . | . . . . . . Special Melee Weapon . | . . . . . . Unidentified Prototypes 1 | . . . . . 1 Corrupted Parts 1 | . . . . . 1 System Corruption 9 | . . . . . 9 Parts Lost 24 | . . . . 1 23 Power 4 | . . . . . 4 Propulsion 8 | . . . . . 8 Utility 6 | . . . . 1 5 Weapon 6 | . . . . . 6 Highest Loss Streak 8 | . . . . 1 8 To Critical Strikes 1 | . . . . . 1 Average Backups 6 | 3 6 8 8 7 6 Power . | 1 2 2 1 . . Propulsion 1 | 1 2 2 2 2 . Utility 2 | . 2 3 3 3 2 Weapon 1 | . . 1 1 2 2 Tool/Special . | . . . . . . Unused Backups 5 | 1 . . 1 . 3 Power 1 | . . . 1 . . Propulsion 1 | 1 . . . . . Utility 2 | . . . . . 2 Weapon 1 | . . . . . 1 Tool/Special . | . . . . . . Average Slot Usage (%) 89 | . 100 100 100 97 76 Engine 9 | . 14 14 14 14 2 Core 2 | . . . . . 5 Leg 21 | . 28 28 28 28 12 Wheel 4 | . . . . . 10 Device 9 | . 14 14 14 12 5 Storage 11 | . 14 14 14 14 9 Processor 3 | . . . . . 8 Protection 2 | . . . . . 5 Energy Gun 9 | . 22 14 14 4 6 Ballistic Gun 1 | . . . . . 2 Launcher 2 | . . . . 10 . Impact Weapon 7 | . 5 14 14 6 4 Slashing Weapon 2 | . . . . 6 3 Peak Build Rating 23 | 9 10 10 11 19 23 Average Rating 13 | 6 9 10 10 12 17 On Entrance 8 | . 9 10 10 11 11 Naked Turns . | . . . . . . Heaviest Build 95 | 15 15 15 15 21 95 Greatest Support 40 | 20 20 20 20 20 40 Greatest Overweight (x) 6 | 1 . . . 1 6 Average Overweight (x) . | . . . . . 1 Largest Inventory Capacity 25 | 8 8 8 8 8 25 Average Capacity 13 | 7 8 8 8 8 21 Most Carried 10 | 5 8 8 8 8 10 Average Carried 6 | 3 7 8 7 7 6 Final Capacity 25 | 8 8 8 8 8 25 Final Carried 8 | 5 8 8 8 8 3 Class Distribution -------------------- 52% | Mutant 18% | Scavenger-Mutant 12% | Commander-Assassin 8% | Scavenger-Assassin 3% | Assassin Dominant Class ---------------- Mutant | -10/Materials Mutant | -10/Mines Mutant | -10/Exiles Commander-Assassin | -9/Mines Scavenger-Mutant | -8/Materials Resources | -11 -10 -10 -10 -9 -8 ----------- Run | Yrd Mat Min Exi Min Mat Matter Collected 729 | 280 10 . . 50 389 Remotely . | . . . . . . Salvage Created 1580 | 295 97 . . 311 877 Parts 95 | 25 8 . . 16 46 Haulers Intercepted 1 | . . . . . 1 Recyclers Shooed . | . . . . . . Parts Field Recycled . | . . . . . . Retrieved Matter . | . . . . . . Parts Self-Destructed . | . . . . . . Prevented . | . . . . . . Kills | -11 -10 -10 -10 -9 -8 ------- Run | Yrd Mat Min Exi Min Mat Combat Hostiles Destroyed 25 | . 2 . . 4 19 Melee 8 | . . . . . 8 Guns 14 | . 2 . . 4 8 AOE 2 | . . . . . 2 Classes Destroyed 11 | 3 2 . . 1 5 Worker 6 | 2 . . . 1 3 Builder 4 | . . . . . 4 Tunneler 11 | 9 . . . 2 . Hauler 1 | . . . . . 1 Recycler 4 | 1 . . . 2 1 Operator 2 | . 1 . . . 1 Watcher 1 | . . . . . 1 Swarmer 13 | . . . . 4 9 Grunt 10 | . 2 . . . 8 Duelist 1 | . . . . . 1 Sentry 1 | . . . . . 1 Best Kill Streak 5 | 5 1 . . 4 5 Combat Bots Only 4 | . 1 . . 4 4 Max Kills in Single Turn 3 | 3 1 . . 1 2 Gunslinging . | . . . . . . Exploded 1 | . . . . . 1 Melee 1 | . . . . . 1 Uniques/NPCs Destroyed . | . . . . . . Combat | -11 -10 -10 -10 -9 -8 -------- Run | Yrd Mat Min Exi Min Mat Hostile Shots Fired 172 | . 13 . . 31 128 Missed 40 | . 3 . . 10 27 Hits 132 | . 10 . . 21 101 Melee 9 | . . . . . 9 Projectile 123 | . 10 . . 21 92 AOE 2 | . . . . . 2 Critical Strikes 9 | . . . . . 9 Actively Blocked 1 | . . . . . 1 Damage Taken 2198 | 28 107 . . 210 1853 Core 637 | 14 11 . . 32 580 Absorbed by Shields . | . . . . . . Redirected to Shielding 37 | . . . . . 37 Core Remaining (%) 85 | 94 . . . 77 . Volleys Fired 91 | 19 9 . 3 19 41 Largest 2 | 2 2 . 1 2 2 Hottest 115 | 90 90 . 50 50 115 Shots Fired 131 | 38 14 . 3 24 52 Gun 123 | 38 14 . 3 19 49 Cannon . | . . . . . . Launcher 3 | . . . . . 3 Special 5 | . . . . 5 . Kinetic 9 | . . . . . 9 Thermal 87 | 19 9 . 3 19 37 Explosive 3 | . . . . . 3 Electromagnetic 27 | 19 5 . . . 3 Robot Hit Streak 16 | 12 10 . . 5 16 Robot Miss Streak 4 | 2 1 . . 2 4 Penetration Max . | . . . . . . Secondary Targets . | . . . . . . Shots Hit Robots 119 | 22 13 . . 22 62 Core Hits 55 | 13 5 . . 7 30 Critical Kills . | . . . . . . Critical Parts Destroyed . | . . . . . . Critical Strikes 11 | 2 2 . . 3 4 Burn 7 | 2 1 . . 1 3 Corrupt 1 | . 1 . . . . Smash 1 | . . . . . 1 Sever 2 | . . . . 2 . Melee Attacks 63 | . 5 . . 10 48 Impact 21 | . 5 . . 2 14 Slashing 42 | . . . . 8 34 Piercing . | . . . . . . Sneak Attacks 13 | . . . . 6 7 Combat Hostiles . | . . . . . . Follow-up Attacks . | . . . . . . Damage Inflicted 3075 | 410 199 . . 603 1863 Guns 1083 | 295 140 . . 151 497 Cannons . | . . . . . . Explosions 382 | 115 . . . . 267 Melee 1604 | . 53 . . 452 1099 Ramming 6 | . 6 . . . . Kinetic 92 | . . . . . 92 Thermal 843 | 225 89 . . 151 378 Explosive 267 | . . . . . 267 Electromagnetic 263 | 185 51 . . . 27 Impact 435 | . 53 . . 94 288 Slashing 1169 | . . . . 358 811 Piercing . | . . . . . . Highest Corruption 19 | . . . . . 19 Average Corruption 15 | . . . . . 15 Corruption Purged . | . . . . . . Corruption Blocked . | . . . . . . Effects 68 | . . . . . 68 Message Errors 21 | . . . . . 21 Matter Fused 16 | . . . . . 16 Heat Flow Errors 7 | . . . . . 7 Energy Discharges 9 | . . . . . 9 Data Loss (minor) 9 | . . . . . 9 Data Loss (major) 1 | . . . . . 1 Misfires 1 | . . . . . 1 Alerts 2 | . . . . . 2 Misdirections 1 | . . . . . 1 Weapon Failures 1 | . . . . . 1 Overload Shots . | . . . . . . Overflow Damage 229 | 6 . . . 81 142 Projectiles . | . . . . . . Explosions 6 | 6 . . . . . Melee 223 | . . . . 81 142 Knockbacks 3 | . . . . 1 2 Impact 3 | . . . . 1 2 Kinetic . | . . . . . . Secondary . | . . . . . . Self-Inflicted Damage 29 | 29 . . . . . Shots 1 | 1 . . . . . Rammed . | . . . . . . Targets Rammed 1 | . 1 . . . . Kicked 1 | . 1 . . . . Crushed . | . . . . . . Highest Temperature 399 | 120 138 . 30 140 399 Average Temperature 87 | 51 53 . 16 71 147 Received Heat Transfer 393 | . 60 . . 12 321 Effects 1 | . . . . . 1 Interference 1 | . . . . . 1 Siege Activations . | . . . . . . Martial Activations . | . . . . . . Shielding Activations . | . . . . . . Robots Disrupted . | . . . . . . Combat Hostiles . | . . . . . . Robots Corrupted 4 | . . . . 2 2 Combat Hostiles . | . . . . . . Parts Fried 12 | 1 . . . 4 7 Impact Corruptions 7 | . . . . 2 5 Robots Melted 1 | . . . . . 1 Combat Hostiles 1 | . . . . . 1 Parts Melted 5 | 3 . . . . 2 Heat Transferred 2666 | 631 333 . . 518 1184 Parts Sabotaged . | . . . . . . Parts Stolen . | . . . . . . Parts Stripped . | . . . . . . Power Chain Reactions 2 | 2 . . . . . Alert | -11 -10 -10 -10 -9 -8 ------- Run | Yrd Mat Min Exi Min Mat Maximum Alert Level . | . . . . . . Low Security (%) 100 | 100 100 100 . 100 100 Level 1 . | . . . . . . Level 2 . | . . . . . . Level 3 . | . . . . . . Level 4 . | . . . . . . Level 5 . | . . . . . . High Security . | . . . . . . Max Security . | . . . . . . Peak Influence 99 | 15 20 3 . 80 99 Initial 23 | . . 3 . . 23 Average 22 | 3 4 1 . 13 33 Influence Increases 1028 | 60 47 . . 303 618 Destroy 0b10 Robot/C 620 | . 40 . . 160 420 Destroy 0b10 Robot/NC 150 | 60 5 . . 25 60 Destroy Leader 104 | . . . . 30 74 Allied During Kill 33 | . . . . 25 8 Disable Machine 15 | . . . . . 15 Destroy Structure 61 | . 2 . . 33 26 Partial Spotted 15 | . . . . . 15 Lose Combat Pursuer 30 | . . . . 30 . Influence Decreases 1028 | 60 37 10 . 242 679 Entered New Map 45 | . . 7 . . 38 Time Decay 735 | 60 37 3 . 162 473 Lost Part 148 | . . . . . 148 Lost Ally 100 | . . . . 80 20 Squads Dispatched 9 | . 2 . . 1 6 Investigation 3 | . 2 . . 1 . Extermination . | . . . . . . Reinforcement 3 | . . . . . 3 Assault . | . . . . . . Garrison 3 | . . . . . 3 Intercept . | . . . . . . Searches Triggered . | . . . . . . Construction Impeded . | . . . . . . Haulers Reinforced . | . . . . . . Active Scanning Responses . | . . . . . . Cargo Convoy Interrupts . | . . . . . . Stealth | -11 -10 -10 -10 -9 -8 --------- Run | Yrd Mat Min Exi Min Mat Distress Signals 3 | . 1 . . . 2 Communications Jammed . | . . . . . . Distress Signals . | . . . . . . Times Spotted 62 | . 5 . . 30 27 Peak Tracking Total 15 | . 3 . . 15 4 Tactical Retreats 2 | . . . . 2 . Traps | -11 -10 -10 -10 -9 -8 ------- Run | Yrd Mat Min Exi Min Mat Traps Triggered . | . . . . . . Indirectly . | . . . . . . Trap Hack Attempts . | . . . . . . Triggered . | . . . . . . Disarmed . | . . . . . . Reprogrammed . | . . . . . . Reused . | . . . . . . Traps Extracted . | . . . . . . Installed . | . . . . . . Triggered . | . . . . . . Machines | -11 -10 -10 -10 -9 -8 ---------- Run | Yrd Mat Min Exi Min Mat Machines Disabled 1 | . . . . . 1 Max in Single Turn 1 | . . . . . 1 Garrison Access 1 | . . . . . 1 Machines Repaired . | . . . . . . Machines Dismantled . | . . . . . . Machines Sabotaged . | . . . . . . Overloaded Fab Kills . | . . . . . . Hacking | -11 -10 -10 -10 -9 -8 --------- Run | Yrd Mat Min Exi Min Mat Machines Accessed 7 | . . . 5 1 1 Terminals 1 | . . . . 1 . Fabricators . | . . . . . . Repair Stations . | . . . . . . Recycling Units . | . . . . . . Scanalyzers . | . . . . . . Garrison Access 1 | . . . . . 1 Total Hacks 54 | . . . 50 1 3 Successful 52 | . . . 50 1 1 Failed 2 | . . . . . 2 Catastrophic . | . . . . . . Database Lockouts . | . . . . . . Manual 4 | . . . 2 2 . Terminals 1 | . . . . 1 . Fabricators . | . . . . . . Repair Stations . | . . . . . . Recycling Units . | . . . . . . Scanalyzers . | . . . . . . Garrison Access 3 | . . . . . 3 Terminal Hacks 51 | . . . 50 1 . Record 49 | . . . 49 . . Level Access Points 1 | . . . . 1 . Proto ID Catalog 1 | . . . 1 . . Fabricator Hacks . | . . . . . . Repair Station Hacks . | . . . . . . Recycling Unit Hacks . | . . . . . . Scanalyzer . | . . . . . . Garrison Access Hacks 1 | . . . . . 1 Seal Access 1 | . . . . . 1 Unauthorized Hacks . | . . . . . . Terminals . | . . . . . . Fabricators . | . . . . . . Repair Stations . | . . . . . . Recycling Units . | . . . . . . Scanalyzers . | . . . . . . Garrison Access . | . . . . . . Data Cores Recovered 1 | . 1 . . . . Used . | . . . . . . Hacking Detections 1 | . . . . 1 . Full Trace Events 1 | . . . . 1 . Feedback Events . | . . . . . . Feedback Blocked . | . . . . . . Robot Schematics Acquired . | . . . . . . Robots Built . | . . . . . . Authchips . | . . . . . . Time . | . . . . . . Total Robot Build Rating . | . . . . . . Part Schematics Acquired . | . . . . . . Parts Built . | . . . . . . Authchips . | . . . . . . Time . | . . . . . . Total Part Build Rating . | . . . . . . Parts Repaired . | . . . . . . Time . | . . . . . . Parts Recycled . | . . . . . . Recycled Matter . | . . . . . . Retrieved Matter . | . . . . . . Retrieved Components . | . . . . . . Parts Scanalyzed . | . . . . . . Part Schematics Acquired . | . . . . . . Parts Damaged . | . . . . . . Bothacking | -11 -10 -10 -10 -9 -8 ------------ Run | Yrd Mat Min Exi Min Mat Used RIF Installer . | . . . . . . Robots Hacked . | . . . . . . Non-combat . | . . . . . . Combat . | . . . . . . Robot Hacks Applied . | . . . . . . Relay Couplers Released . | . . . . . . Fabnet Peak Effective % . | . . . . . . Robots Rewired . | . . . . . . Allies Hacked . | . . . . . . Hacks Repelled . | . . . . . . Allies | -11 -10 -10 -10 -9 -8 -------- Run | Yrd Mat Min Exi Min Mat Total Allies 9 | . . . . 9 . Largest Group 5 | . . . . 5 3 Highest-Rated Group 99 | . . . . 99 38 Highest-Rated Ally 31 | . . . . 31 16 Total Orders . | . . . . . . Ally Attacks 44 | . . . . 21 23 Total Damage 1019 | . . . . 719 300 Kills 17 | . . . . 13 4 Allies Corrupted . | . . . . . . Allies Melted . | . . . . . . Field Lobotomies 5 | . . . . 5 . Intel | -11 -10 -10 -10 -9 -8 ------- Run | Yrd Mat Min Exi Min Mat Active Infowar (turns) 2659 | 85 196 47 1198 806 327 Terrain 2659 | 85 196 47 1198 806 327 Robot Analysis Total . | . . . . . . Derelict Logs Recovered 1 | . . . . 1 . Drone Launches . | . . . . . . Drone Recoveries . | . . . . . . Exploration | -11 -10 -10 -10 -9 -8 ------------- Run | Yrd Mat Min Exi Min Mat Turns Passed 4335 | 246 196 47 1198 915 1733 Spaces Moved 2680 | 149 117 34 993 657 730 Core 17 | 17 . . . . . Treads . | . . . . . . Legs 2252 | 132 117 34 993 657 319 Wheels 411 | . . . . . 411 Hover . | . . . . . . Flight . | . . . . . . Fastest Speed 50 | 50 120 120 120 120 80 Average Speed 136 | 114 120 120 120 120 181 Slowest Speed 540 | 120 120 120 120 190 540 Overloaded Moves . | . . . . . . Propulsion Burnouts . | . . . . . . Robots Hopped . | . . . . . . Potential Cave-ins . | . . . . . . Cave-ins Triggered . | . . . . . . Exploration Rate (%) 41 | 7 19 9 94 84 33 Regions Visited 5 Branch Regions 3 Pre-discovered Areas 1 | . . . 1 . . Known Exits Taken 1 | . . . . 1 . Unknown Exits Taken 4 | 1 1 1 1 . . Scrap Searched 1 | . . . . 1 . Spaces Dug 7 | . 2 . . . 5 Terrain Destroyed 38 | 6 2 . . . 30 Melee 7 | . 2 . . . 5 Projectile . | . . . . . . AOE 31 | 6 . . . . 25 Terrain Rammed . | . . . . . . Walls Destroyed . | . . . . . . Machines Disabled . | . . . . . . Actions | -11 -10 -10 -10 -9 -8 --------- Run | Yrd Mat Min Exi Min Mat Total 3135 | 183 149 40 997 737 1029 Wait 229 | . 14 7 . 44 164 Move 2675 | 148 116 33 992 656 730 Hop . | . . . . . . Pick Up 26 | 7 3 . 1 1 14 Fast Attach 8 | 6 . . . 2 . Attach 22 | 1 . . . . 21 Detach 2 | . . . . . 2 Swap 12 | 1 1 . . 3 7 Drop 6 | 1 . . 1 2 2 Fire 91 | 19 9 . 3 19 41 Melee 63 | . 5 . . 10 48 Ram . | . . . . . . Kick 1 | . 1 . . . . Crush . | . . . . . . Escape Stasis . | . . . . . . Rewire . | . . . . . . Trap . | . . . . . . Miscellaneous . | . . . . . . Route ------- -11/Scrapyard -10/Materials -10/Mines -10/Exiles (discovered 2 exits: *Min x2) -9/Mines (discovered 2 exits: *Mat x2) -8/Materials (discovered 1 exit: [*Fac]) History --------- Turn | Location | Event 18 | -11/Scrapyard | Discovered new exit (range 15) 247 | -11/Scrapyard | Entered Materials 308 | -10/Materials | Build established: Mutant 337 | -10/Materials | Discovered new exit (range 6) 402 | -10/Materials | Met 8R-AWN 443 | -10/Materials | Entered Mines 444 | -10/Mines | Followed 8R-AWN into the Mines 484 | -10/Mines | Discovered new exit (range 5) 490 | -10/Mines | Entered Exiles 526 | -10/Exiles | Welcomed by 8R-AWN 543 | -10/Exiles | Met EX-HEX 627 | -10/Exiles | Met EX-DEC 682 | -10/Exiles | Learned location of Zion (-7) 728 | -10/Exiles | Discovered new exit (range 10) 831 | -10/Exiles | Met EX-BIN 858 | -10/Exiles | Aligned with FarCom system 859 | -10/Exiles | Given EX-Vault access code 1003 | -10/Exiles | Learned about 8R-AWN's background 1113 | -10/Exiles | Opened EX-Vault 1138 | -10/Exiles | Found Field Lobotomy Kit 1164 | -10/Exiles | Warned to stay clear of 0b10 Research branches 1359 | -10/Exiles | Visited The Gauntlet 1667 | -10/Exiles | Discovered new exit (range 15) 1688 | -10/Exiles | Left Exiles lab with Field Lobotomy Kit 1688 | -10/Exiles | Entered Mines 1751 | -9/Mines | Met a Derelict bent on vengeance 1771 | -9/Mines | Assisted by bots powering up and referring to "LRC-V3" 1852 | -9/Mines | Assembled infested the area 1857 | -9/Mines | Assisted by a Guerilla fighting off Assembled 1865 | -9/Mines | Assimilated as-00768 with FLK Orb 1869 | -9/Mines | Assimilated as-45701 with FLK Orb 1873 | -9/Mines | Assimilated as-18781 with FLK Orb 1888 | -9/Mines | Assimilated D-53 Grenadier with FLK Orb 1892 | -9/Mines | Assimilated as-17920 with FLK Orb 1924 | -9/Mines | Lost 4 allies 1925 | -9/Mines | Received a Rocket Launcher from a helpful Derelict 1982 | -9/Mines | Discovered new exit (range 5) 2037 | -9/Mines | Discovered new exit (range 9) 2043 | -9/Mines | Received a Mining Laser from a helpful Derelict 2183 | -9/Mines | A weapon hastily lodged in a ceiling crevice suddenly fell to the ground 2283 | -9/Mines | Build established: Commander-Assassin 2448 | -9/Mines | Identified exit to Materials 2603 | -9/Mines | Entered Materials 2603 | -8/Materials | Accompanied by 3 allies 2603 | -8/Materials | Evolved 4 slots: Propulsion x2, Utility x2 2662 | -8/Materials | Garrison activated, responded to threat 2707 | -8/Materials | Lost 3 parts (1p1n1w) 2722 | -8/Materials | Lost 3 allies 2941 | -8/Materials | Discovered new exit (range 16) 2977 | -8/Materials | Build established: Scavenger-Assassin 3201 | -8/Materials | System corruption reached 10% 3247 | -8/Materials | Lost 8 parts (1p4n1u2w) 3605 | -8/Materials | Build established: Scavenger-Mutant 3941 | -8/Materials | Core integrity fell below 50% 4000 | -8/Materials | Lost 4 parts (1p2u1w) 4248 | -8/Materials | Build established: Mutant 4328 | -8/Materials | Core integrity fell below 20% 4336 | -8/Materials | Destroyed by H-61 Shepherd with Heavy Assault Cannon Last Messages --------------- dispatching Specialist reinforcements to area. 3J MXI%VWDI8O3EZ8U3A#71#XPU0H: SUQG| W-25 Informer sends out distress signal. Penetrated by Slug. Med. Laser destroyed. System corrupted: Component data lost. H-61 Shepherd calls for reinforcements. ALERT: Hostile activity reported, dispatching reinforcements to area. Rocket Launcher destroyed. Knocked back. K-01 Serf collects debris. Cld. Ion Engine destroyed. Knocked back. K-01 Serf collects debris. Carbon-fiber Leg destroyed. Terrain Scan Processor destroyed. Critical hit (Blast). Knocked back. Carbon-fiber Leg destroyed. Map ----- +----------------------------------------------------+ | ## ############### ##?#??#?????? | | ## ! #?##???# # #######?#?#??#??? | | ## #??#?### # #???####?#???##?? | | ## ##????## # ##?#####?#??????? | | ## #??###?# + ############?#??? | | ## #?#?#### # # ##?##?## | | ##############?# # # """"" #?#????? | | ##?## #???##?#?######## # """"" #?#????? | | #??## #?##??#?####?#?## # """"" #??##?#? | | ##### #?#?#??#?##?#?#?# # """"" ######?# | | #?### ######?#?#?#??### #[ """"" #?#??##? | | ##?## ## ##?#???##### [ +% """"" ##?#???? | | #### #### ########### # """"" #?#?#?#? | | # # ## # ##?#???? | | # "" # ## ########"######?# | | # """ # ##??#?####?#???? | | # "S # #?##??#?#????##? | | / "" # + T ##?######??###?? | | # "% / # ##?#?#?#?##?##?? | | # =% # #= #?#???###?#?#??? | | # ! %= # ### ##?#?###?##?###?? | | ##### # ## ### #????#?##?##?#??? | | #### # ############### #?#????#???#?#?#? | | #?##### #?#?#??#??#?#?# ##?????#?##?????? | | #?#?################?###% #####?#?#???????? | | ####?####?# ##??# @##?###?##???????? | | ###??#?#### """ ###?# %#??##?#??#??????? | | ######??### """ #??## ####??#?#???????? | | #? ]]???### """ #??##% ###?#?????#?????? | | # ] #### """ ####; #??????Y?##?????? | | # ? #### """ + t #???? ?#?#??????? | | + ? #### # % #?? ????????????? | | #?"T? ??### # % + !???#????????? | | # ?? ?### # # =%?????????? | | ##?###?########+#### "? =%#????????? | | #???##### #??#####????????? | | #####?#?# x x #???????????????? | | #?#????## #### ######### # ??????????????? | | ######### #?##+#???????# ???????????????? | | # ?? ?????? ? ???????????????? | | ###### ####???????????? ???????????????? | | ####?# ###? ??????????? H ??????????????? | | ###### ####???"????????Y% ??????????????? | | #?##?# ####???? ?????? ??????????????? | | ######+########??#?????# #??????????????? | | ## #?????????? ???????????????? | | ## +? ??????????????????????????? | | ## # ??????????????????????????? | | ## #????????????????????????????? | | ## ##???????????????????????????? | +----------------------------------------------------+ Best States ------------- Heat Dissipation 45 Energy Generation 14 Energy Capacity 280 Matter Stores 300 Matter Capacity 300 Sight Range 16 Terrain Scan Range 16 Terrain Scan Density 85 Armor Coverage 150 Core Shielding 20 Evasion (%) 55 Item Schematics ----------------- None Robot Schematics ------------------ None Fabricated ------------ Nothing Repaired ---------- Nothing Alien Tech Used ----------------- None Achievements -------------- I Survived The Infestation Librarian Slippery One Challenges ------------ None Game ------ Seed ProtonMinesnifferCasing Manual? 0 Play Time 00:33:48 Cumulative 9.3 hours Start 2025.10.19 @ 01:08:34 End 2025.10.19 @ 15:45:46 Sessions 3 Manual Loads 0 Difficulty Rogue Special Mode None Game No. 15 Rogue 7 Adventurer 8 Explorer 0 Win Type - Total 0 Types 0/0/0/0/0/0/0/0/0/0 Lore% 9 Gallery% 14 Achievement% 19 Wizard Run 0 Options --------- Layout 1 ASCII 0 Keyboard 0 Movement Arrows Keybinds 0 Fullscreen 1 Font 24/Smallcaps Map View 50x40 Zoom Use 0% Tactical HUD 0 Map Filters NONE Filters NONE Steam 1 RUN: d732c7ea-1232-4f77-a9ed-7c82677169fe